bitfinex/quotes_SOLUSD_20230116
["timestamp","ask_amount","ask_price","bid_price","bid_amount"]
[1673884620938,20.0,23.073,23.055,17.0]
[1673884621461,20.0,23.073,23.056,19.67477699]
[1673884621680,20.0,23.073,23.057,17.0]
[1673884622195,32.51,23.084,23.057,36.67477699]
[1673884622410,119.6205,23.088,23.04,102.61]
[1673884622411,32.53,23.076,23.048,34.49825894]
[1673884622606,4.99338,23.075,23.048,17.4806711]
[1673884622819,58.98534354,23.075,23.048,17.4806711]
[1673884623015,41.46196354,23.074,23.048,17.4806711]
[1673884623227,25.74,23.07,23.04,25.54]
[1673884623435,21.99338,23.069,23.043,17.4806711]
[1673884623671,20.0,23.068,23.043,17.4806711]
[1673884623866,17.0,23.067,23.043,17.4806711]
[1673884624077,20.0,23.066,23.043,17.4806711]
[1673884624287,17.0,23.065,23.043,17.4806711]
[1673884624493,75.99534354,23.065,23.037,20.0]
[1673884624824,20.0,23.059,23.038,17.4806711]
[1673884625977,119.0063,23.062,23.038,17.4806711]
[1673884626712,119.0063,23.062,23.039,17.0]
[1673884626924,119.0063,23.062,23.038,20.0]
[1673884627135,119.0063,23.062,23.04,17.4806711]
[1673884627323,119.0063,23.062,23.041,17.0]
[1673884627530,119.0063,23.062,23.042,20.0]
[1673884627873,119.0063,23.062,23.043,17.4806711]
[1673884628092,119.0063,23.062,23.044,20.0]
[1673884628298,119.0063,23.062,23.045,17.0]
[1673884628809,119.0063,23.062,23.045,34.4806711]
[1673884629640,119.0063,23.062,23.042,20.0]
[1673884629854,20.0,23.061,23.042,20.0]
[1673884630069,20.0,23.061,23.038,20.0]
[1673884630288,119.0063,23.062,23.042,17.4806711]
[1673884630497,32.55,23.06,23.038,20.0]
[1673884630698,20.0,23.061,23.039,17.4806711]
[1673884631337,75.12,23.06,23.039,17.4806711]
[1673884631653,80.11338,23.06,23.029,20.0]
[1673884631856,20.0,23.058,23.034,17.4806711]
[1673884632175,32.55,23.06,23.034,17.4806711]
[1673884632389,119.0063,23.062,23.034,17.4806711]
[1673884632600,52.55,23.061,23.035,20.0]
[1673884632796,52.55,23.061,23.036,17.0]
[1673884633010,20.0,23.06,23.037,20.0]
[1673884633220,20.0,23.06,23.038,17.0]
[1673884633549,32.55,23.061,23.039,20.0]
[1673884633762,119.0063,23.062,23.04,17.0]
[1673884633970,119.0063,23.062,23.041,20.0]
[1673884634187,119.0063,23.062,23.042,17.0]
[1673884634579,119.0063,23.062,23.043,17.4806711]
[1673884634790,119.0063,23.062,23.044,17.0]
[1673884635018,119.0063,23.062,23.045,20.0]
[1673884635228,119.0063,23.062,23.046,17.0]
[1673884635431,119.0063,23.062,23.046,34.4806711]
[1673884635631,119.0063,23.062,23.046,17.0]
[1673884635849,119.0063,23.062,23.047,17.4806711]
[1673884636050,119.0063,23.062,23.048,17.0]
[1673884636478,32.54,23.067,23.049,20.0]
[1673884636803,32.54,23.068,23.05,60.0206711]
[1673884637014,108.8094,23.069,23.051,20.0]
[1673884637213,108.8094,23.069,23.053,20.0]
[1673884637420,108.8094,23.069,23.054,17.0]
[1673884637635,108.8094,23.069,23.054,34.4806711]
[1673884638055,108.8094,23.069,23.055,17.4806711]
[1673884638267,108.8094,23.069,23.056,17.0]
[1673884638476,32.53,23.073,23.056,17.0]
[1673884638676,20.0,23.072,23.055,17.4806711]
[1673884638896,25.74,23.07,23.035,20.0]
[1673884639220,20.0,23.069,23.038,17.4806711]
[1673884639421,52.54,23.069,23.038,17.4806711]
[1673884639633,78.99534354,23.069,23.035,20.0]
[1673884639853,20.0,23.067,23.035,20.0]
[1673884640164,25.74,23.06,23.035,20.0]
[1673884640377,128.0996,23.059,23.031,37.4806711]
[1673884640695,21.99338,23.058,23.031,20.0]
[1673884641016,20.0,23.057,23.029,20.0]
[1673884641198,17.0,23.056,23.026,17.4806711]
[1673884641408,38.46196354,23.056,23.026,17.4806711]
[1673884641633,32.56,23.055,23.027,37.4806711]
[1673884641846,37.0,23.054,23.027,37.4806711]
[1673884642248,32.56,23.053,23.027,20.0]
[1673884642566,20.0,23.051,23.027,20.0]
[1673884642775,37.55338,23.053,23.027,20.0]
[1673884642985,32.56,23.05,23.027,20.0]
[1673884643199,49.56,23.052,23.027,20.0]
[1673884643428,32.56,23.049,23.027,20.0]
[1673884643635,32.56,23.051,23.027,20.0]
[1673884643831,32.56,23.051,23.028,17.4806711]
[1673884644041,32.56,23.052,23.029,20.0]
[1673884644250,32.55,23.056,23.03,17.0]
[1673884644453,32.55,23.058,23.031,20.0]
[1673884644766,32.56,23.055,23.033,20.0]
[1673884644980,69.55,23.057,23.034,17.0]
[1673884645190,21.46196354,23.055,23.034,17.0]
[1673884645398,17.0,23.054,23.032,17.0]
[1673884645631,17.0,23.054,23.031,20.0]
[1673884645632,49.56,23.054,23.031,20.0]
[1673884645844,20.0,23.053,23.031,20.0]
[1673884646239,20.0,23.051,23.029,20.0]
[1673884646676,32.56,23.05,23.029,20.0]
[1673884646892,20.0,23.049,23.03,17.0]
[1673884647082,20.0,23.049,23.027,20.0]
[1673884647296,150.98566354,23.048,23.024,20.0]
[1673884647509,150.98566354,23.048,23.02,25.89]
[1673884647510,183.55566354,23.048,23.02,25.89]
[1673884647719,183.55566354,23.048,23.019,37.4806711]
[1673884647720,20.0,23.047,23.019,37.4806711]
[1673884648062,145.0937,23.048,23.021,17.4806711]
[1673884648257,112.5237,23.048,23.021,17.4806711]
[1673884648660,112.5237,23.048,23.022,20.0]
[1673884648872,112.5237,23.048,23.023,17.0]
[1673884649081,112.5237,23.048,23.023,34.4806711]
[1673884649305,112.5237,23.048,23.024,37.4806711]
[1673884649502,112.5237,23.048,23.025,17.0]
[1673884649712,20.0,23.046,23.025,17.0]
[1673884649917,145.0837,23.048,23.025,17.0]
[1673884650254,20.0,23.047,23.025,17.0]
[1673884650655,20.0,23.047,23.026,20.0]
[1673884650886,20.0,23.047,23.027,17.0]
[1673884651940,20.0,23.047,23.024,20.0]
[1673884652142,32.57,23.046,23.024,20.0]
[1673884652548,32.57,23.047,23.025,34.9613422]
[1673884652760,20.0,23.053,23.03,25.74]
[1673884653192,52.56,23.053,23.03,25.74]
[1673884653497,20.0,23.053,23.03,43.2206711]
[1673884653820,25.74,23.05,23.026,20.0]
[1673884654143,25.74,23.05,23.024,20.0]
[1673884654144,20.0,23.048,23.024,20.0]
[1673884654357,17.0,23.047,23.024,20.0]
[1673884654561,32.57,23.047,23.024,20.0]
[1673884654776,151.87502708,23.049,23.024,20.0]
[1673884654988,141.5111,23.049,23.025,17.4806711]
[1673884655174,141.5111,23.049,23.026,20.0]
[1673884655606,141.5111,23.049,23.027,17.4806711]
[1673884655823,141.5111,23.049,23.028,17.0]
[1673884656025,141.5111,23.049,23.029,20.0]
[1673884656239,141.5111,23.049,23.03,17.0]
[1673884656451,20.0,23.048,23.03,17.0]
[1673884656872,108.9511,23.049,23.03,17.0]
[1673884657091,108.9511,23.049,23.031,20.0]
[1673884657295,108.9511,23.049,23.032,17.0]
[1673884657508,108.9511,23.049,23.033,20.0]
[1673884657714,32.56,23.054,23.034,17.0]
[1673884658043,32.55,23.056,23.035,20.0]
[1673884658259,114.8185,23.057,23.037,20.0]
[1673884658441,114.8185,23.057,23.038,17.0]
[1673884658882,52.55,23.059,23.038,17.0]
[1673884659096,146.7618,23.063,23.04,25.54]
[1673884659304,25.57,23.07,23.041,17.0]
[1673884659305,32.54,23.066,23.041,17.0]
[1673884659496,32.54,23.066,23.041,34.4806711]
[1673884659699,114.2218,23.069,23.042,17.4806711]
[1673884659916,114.2218,23.069,23.043,17.0]
[1673884660246,114.2218,23.069,23.044,17.4806711]
[1673884660457,114.2218,23.069,23.045,17.0]
[1673884660868,114.2218,23.069,23.046,17.4806711]
[1673884661076,114.2218,23.069,23.047,17.0]
[1673884661298,20.0,23.068,23.047,17.0]
[1673884661503,20.0,23.068,23.05,25.52]
[1673884661703,20.0,23.068,23.051,17.0]
[1673884661918,20.0,23.073,23.051,34.4806711]
[1673884662123,32.52,23.078,23.052,17.4806711]
[1673884662333,32.52,23.079,23.053,17.0]
[1673884662562,20.0,23.078,23.053,17.0]
[1673884662768,20.0,23.078,23.051,20.0]
[1673884662769,142.6517,23.085,23.052,17.0]
[1673884662975,32.52,23.078,23.054,37.4806711]
[1673884663195,20.0,23.077,23.055,17.0]
[1673884663405,52.52,23.077,23.056,20.0]
[1673884663616,20.0,23.077,23.057,17.0]
[1673884664134,52.52,23.081,23.057,17.0]
[1673884665284,21.46196354,23.08,23.057,17.0]
[1673884665518,20.0,23.079,23.057,17.0]
[1673884665834,52.52,23.079,23.057,17.0]
[1673884666130,73.98196354,23.079,23.057,17.0]
[1673884666532,52.52,23.079,23.056,20.0]
[1673884666746,20.0,23.079,23.057,17.0]
[1673884666953,32.52,23.078,23.057,17.0]
[1673884667178,20.0,23.077,23.057,17.0]
[1673884667587,32.53,23.076,23.06,25.74]
[1673884667819,111.8139,23.088,23.07,25.74]
[1673884668033,20.0,23.089,23.08,25.52]
[1673884668346,117.6077,23.105,23.081,17.0]
[1673884668542,32.49,23.104,23.081,17.0]
[1673884669174,117.6077,23.105,23.081,34.4806711]
[1673884669597,117.6077,23.105,23.082,20.0]
[1673884669598,20.0,23.104,23.082,20.0]
[1673884669810,20.0,23.104,23.083,17.0]
[1673884670336,32.47,23.113,23.09,25.74]
[1673884670658,20.0,23.112,23.091,17.0]
[1673884670850,25.57,23.11,23.09,18.06409749]
[1673884671063,25.57,23.11,23.082,20.0]
[1673884671271,32.48,23.109,23.082,20.0]
[1673884671489,32.48,23.109,23.092,20.0]
[1673884672237,20.0,23.108,23.083,38.06409749]
[1673884672441,52.48,23.108,23.084,17.0]
[1673884672629,20.0,23.108,23.084,35.06409749]
[1673884672839,32.48,23.107,23.085,18.06409749]
[1673884673058,32.48,23.107,23.09,25.52]
[1673884673273,20.0,23.108,23.09,25.52]
[1673884673483,20.0,23.108,23.091,35.06409749]
[1673884673702,32.47,23.118,23.091,35.06409749]
[1673884673908,32.47,23.118,23.092,38.06409749]
[1673884673909,20.0,23.117,23.092,38.06409749]
[1673884674220,20.0,23.117,23.093,35.06409749]
[1673884674450,32.47,23.116,23.094,20.0]
[1673884674641,32.47,23.116,23.095,17.0]
[1673884675273,32.47,23.116,23.096,18.06409749]
[1673884675483,32.47,23.116,23.097,17.0]
[1673884675918,32.47,23.118,23.097,17.0]
[1673884676131,32.47,23.115,23.097,17.0]
[1673884676346,20.0,23.116,23.097,17.0]
[1673884676532,32.47,23.114,23.097,17.0]
[1673884676744,32.47,23.115,23.091,18.06409749]
[1673884677083,32.47,23.113,23.087,20.0]
[1673884677282,20.0,23.114,23.087,20.0]
[1673884677283,52.47,23.114,23.087,20.0]
[1673884677480,20.0,23.114,23.087,20.0]
[1673884677690,20.0,23.112,23.087,20.0]
[1673884678235,20.0,23.11,23.091,17.0]
[1673884678663,32.48,23.109,23.091,17.0]
[1673884678846,32.48,23.11,23.091,17.0]
[1673884679058,32.48,23.111,23.092,38.06409749]
[1673884679368,32.48,23.109,23.094,20.0]
[1673884679576,32.47,23.113,23.095,17.0]
[1673884680001,21.46196354,23.122,23.1,25.54]
[1673884680234,135.31136354,23.118,23.101,17.0]
[1673884680421,21.46196354,23.118,23.101,17.0]
[1673884680632,32.47,23.117,23.101,17.0]
[1673884680857,32.47,23.117,23.09,25.54]
[1673884681072,20.0,23.115,23.091,17.0]
[1673884681272,20.0,23.115,23.058,114.48297657]
[1673884681273,25.74,23.11,23.084,38.06409749]
[1673884681470,25.74,23.11,23.083,20.0]
[1673884681677,25.74,23.11,23.08,25.52]
[1673884681678,58.93534354,23.109,23.08,25.52]
[1673884681892,4.99338,23.108,23.09,25.52]
[1673884682110,52.48,23.109,23.09,25.52]
[1673884682331,20.0,23.109,23.09,43.58409749]
[1673884682542,32.47,23.113,23.09,43.58409749]
[1673884682734,20.0,23.112,23.091,18.06409749]
[1673884682941,20.0,23.112,23.092,17.0]
[1673884683151,151.6707,23.114,23.092,17.0]
[1673884683379,20.0,23.113,23.094,20.0]
[1673884683576,119.2007,23.114,23.1,25.74]
[1673884683913,113.8494,23.116,23.101,17.0]
[1673884684313,20.0,23.115,23.101,17.0]
[1673884684523,113.8494,23.116,23.101,17.0]
[1673884684849,20.0,23.115,23.101,17.0]
[1673884685044,52.47,23.115,23.101,17.0]
[1673884685367,52.47,23.115,23.09,25.74]
[1673884685368,21.46196354,23.114,23.09,25.74]
[1673884685567,52.47,23.115,23.092,18.06409749]
[1673884685773,32.47,23.113,23.092,18.06409749]
[1673884686004,32.47,23.114,23.092,18.06409749]
[1673884686408,32.47,23.114,23.093,20.0]
[1673884686620,113.8494,23.116,23.093,20.0]
[1673884686840,113.8494,23.116,23.1,25.74]
[1673884687061,32.46,23.121,23.102,20.0]
[1673884687256,142.9191,23.121,23.102,20.0]
[1673884687476,110.4591,23.121,23.103,17.0]
[1673884687681,32.46,23.12,23.103,17.0]
[1673884688222,52.46,23.12,23.103,17.0]
[1673884689065,20.0,23.119,23.103,17.0]
[1673884689477,32.46,23.12,23.103,35.06409749]
[1673884690109,32.46,23.125,23.104,20.0]
[1673884690430,32.45,23.126,23.105,17.0]
[1673884690644,32.45,23.126,23.105,53.12819498]
[1673884690864,32.45,23.126,23.106,20.0]
[1673884691077,32.45,23.126,23.108,20.0]
[1673884691380,32.45,23.128,23.11,25.74]
[1673884691569,32.45,23.126,23.11,25.74]
[1673884691782,32.45,23.127,23.111,17.0]
[1673884691986,20.0,23.136,23.112,20.0]
[1673884691987,32.44,23.135,23.112,20.0]
[1673884692199,32.45,23.126,23.113,17.0]
[1673884692419,20.0,23.133,23.113,17.0]
[1673884692846,20.0,23.131,23.113,17.0]
[1673884693064,20.0,23.131,23.11,25.74]
[1673884693244,20.0,23.129,23.11,25.74]
[1673884693688,20.0,23.127,23.11,25.74]
[1673884693900,20.0,23.127,23.1,25.74]
[1673884694097,32.45,23.126,23.1,25.74]
[1673884694310,20.0,23.125,23.1,25.74]
[1673884694517,116.6847,23.124,23.101,18.06409749]
[1673884694735,149.1447,23.124,23.101,18.06409749]
[1673884694952,20.0,23.123,23.101,18.06409749]
[1673884695367,32.46,23.122,23.101,18.06409749]
[1673884695593,20.0,23.121,23.102,20.0]
[1673884696109,20.0,23.121,23.103,35.06409749]
[1673884697365,32.46,23.122,23.104,38.06409749]
[1673884697583,116.6847,23.124,23.105,17.0]
[1673884697770,116.6847,23.124,23.103,17.0]
[1673884697984,52.46,23.123,23.101,17.0]
[1673884698401,52.46,23.123,23.102,18.06409749]
[1673884698607,52.46,23.123,23.1,25.74]
[1673884698847,20.0,23.122,23.097,18.06409749]
[1673884699029,20.0,23.121,23.097,18.06409749]
[1673884699384,52.46,23.121,23.097,18.06409749]
[1673884700394,52.46,23.121,23.098,17.0]
[1673884701042,52.46,23.121,23.099,18.06409749]
[1673884701249,52.46,23.121,23.1,17.0]
[1673884701782,52.46,23.121,23.1,35.06409749]
[1673884702712,25.74,23.12,23.091,20.0]
[1673884702930,4.99338,23.119,23.092,18.06409749]
[1673884703162,20.0,23.118,23.093,20.0]
[1673884703361,41.46196354,23.118,23.093,20.0]
[1673884703578,32.47,23.117,23.092,18.06409749]
[1673884703986,20.0,23.116,23.092,18.06409749]
[1673884704197,20.0,23.116,23.093,17.0]
[1673884704403,32.47,23.115,23.094,20.0]
[1673884704624,32.47,23.116,23.095,17.0]
[1673884704838,32.47,23.118,23.095,17.0]
[1673884705047,20.0,23.117,23.096,20.0]
[1673884705245,20.0,23.117,23.097,17.0]
[1673884705448,20.0,23.117,23.097,35.06409749]
[1673884705673,20.0,23.117,23.097,17.0]
[1673884705981,20.0,23.117,23.099,20.0]
[1673884706196,20.0,23.117,23.1,17.0]
[1673884706405,20.0,23.119,23.1,17.0]
[1673884708198,20.0,23.119,23.089,20.0]
[1673884708524,32.47,23.118,23.093,25.79766195]
[1673884708839,32.47,23.118,23.092,52.37555292]
[1673884709028,20.0,23.117,23.095,20.0]
[1673884709459,20.0,23.115,23.094,18.06409749]
[1673884709670,20.0,23.115,23.09,25.74]
[1673884709887,146.4017,23.114,23.09,43.80409749]
[1673884710107,20.0,23.113,23.091,20.0]
[1673884710507,20.0,23.111,23.09,43.80409749]
[1673884711137,32.48,23.11,23.081,20.0]
[1673884711342,32.48,23.11,23.086,18.06409749]
[1673884711764,20.0,23.109,23.086,18.06409749]
[1673884712624,20.0,23.109,23.081,20.0]
[1673884712939,20.0,23.109,23.082,18.06409749]
[1673884713121,20.0,23.109,23.083,20.0]
[1673884713542,20.0,23.109,23.085,20.0]
[1673884713974,20.0,23.109,23.086,18.06409749]
[1673884714194,20.0,23.109,23.087,17.0]
[1673884714627,52.48,23.111,23.088,36.12819498]
[1673884714843,20.0,23.111,23.089,37.0]
[1673884715242,20.0,23.111,23.09,18.06409749]
[1673884715474,20.0,23.111,23.091,17.0]
[1673884715879,20.0,23.111,23.092,18.06409749]
[1673884716088,20.0,23.111,23.093,17.0]
[1673884716298,128.2487,23.112,23.093,17.0]
[1673884716614,20.0,23.111,23.094,18.06409749]
[1673884716944,20.0,23.111,23.095,17.0]
[1673884717465,20.0,23.111,23.096,18.06409749]
[1673884717669,20.0,23.111,23.097,17.0]
[1673884717887,20.0,23.111,23.095,17.0]
[1673884718078,20.0,23.111,23.097,18.06409749]
[1673884718293,20.0,23.111,23.098,17.0]
[1673884718714,20.0,23.111,23.091,18.06409749]
[1673884719454,52.48,23.111,23.08,45.89]
[1673884719654,25.74,23.11,23.08,25.89]
[1673884719866,20.0,23.108,23.074,20.0]
[1673884720094,20.0,23.108,23.078,20.0]
[1673884720302,32.48,23.107,23.078,20.0]
[1673884720495,52.48,23.108,23.08,25.54]
[1673884720705,20.0,23.108,23.081,20.0]
[1673884720915,20.0,23.108,23.083,20.0]
[1673884721149,20.0,23.108,23.084,17.0]
[1673884721354,20.0,23.108,23.083,18.06409749]
[1673884721567,52.48,23.108,23.08,25.54]
[1673884721899,73.94196354,23.108,23.08,25.54]
[1673884722303,73.94196354,23.108,23.081,20.0]
[1673884723044,73.94196354,23.108,23.08,25.54]
[1673884723253,73.94196354,23.108,23.081,17.0]
[1673884723856,73.94196354,23.108,23.08,25.54]
[1673884724420,73.94196354,23.108,23.077,111.4213]
[1673884724613,52.48,23.108,23.077,111.4213]
[1673884724807,20.0,23.106,23.077,131.4213]
[1673884725020,20.0,23.106,23.078,38.06409749]
[1673884725343,32.48,23.105,23.079,17.0]
[1673884725536,20.0,23.104,23.08,20.0]
[1673884725754,20.0,23.104,23.081,17.0]
[1673884726187,41.46196354,23.104,23.077,131.4213]
[1673884726393,32.47,23.113,23.09,25.74]
[1673884726608,20.0,23.111,23.09,25.74]
[1673884726821,20.0,23.111,23.091,18.06409749]
[1673884727035,52.48,23.111,23.091,18.06409749]
[1673884727576,52.48,23.111,23.092,17.0]
[1673884727751,20.0,23.111,23.092,17.0]
[1673884727962,108.2487,23.112,23.093,18.06409749]
[1673884728192,108.2487,23.112,23.094,17.0]
[1673884728377,20.0,23.111,23.094,17.0]
[1673884729341,108.2487,23.112,23.094,35.06409749]
[1673884729569,32.47,23.118,23.094,35.06409749]
[1673884729888,141.7317,23.122,23.095,20.0]
[1673884730284,32.47,23.118,23.096,35.06409749]
[1673884730493,20.0,23.117,23.096,35.06409749]
[1673884730717,20.0,23.117,23.097,36.12819498]
[1673884730915,20.0,23.117,23.098,17.0]
[1673884731356,32.47,23.118,23.099,18.06409749]
[1673884731549,32.47,23.118,23.1,20.0]
[1673884731757,109.2717,23.122,23.101,17.0]
[1673884731986,109.2717,23.122,23.102,20.0]
[1673884732191,32.45,23.126,23.103,17.0]
[1673884732392,145.1347,23.127,23.103,35.06409749]
[1673884732604,112.6847,23.127,23.103,17.0]
[1673884732811,20.0,23.126,23.105,20.0]
[1673884733025,20.0,23.126,23.106,17.0]
[1673884733237,52.45,23.126,23.106,35.06409749]
[1673884733669,162.8032,23.126,23.106,35.06409749]
[1673884735751,142.8032,23.126,23.106,35.06409749]
[1673884735963,110.3532,23.126,23.107,18.06409749]
[1673884736274,110.3532,23.126,23.108,17.0]
[1673884736486,110.3532,23.126,23.109,20.0]
[1673884736692,110.3532,23.126,23.11,17.0]
[1673884737040,20.0,23.125,23.11,17.0]
[1673884737235,110.3532,23.126,23.11,17.0]
[1673884737448,110.3532,23.126,23.11,34.02]
[1673884737645,110.3532,23.126,23.11,52.08409749]
[1673884737970,112.6847,23.127,23.11,52.08409749]
[1673884738399,112.6847,23.127,23.111,49.18181365]
[1673884738588,32.45,23.126,23.101,38.06409749]
[1673884738798,20.0,23.125,23.101,20.0]
[1673884739012,20.0,23.125,23.101,38.06409749]
[1673884739229,32.46,23.124,23.101,20.0]
[1673884739443,20.0,23.123,23.101,38.06409749]
[1673884739858,32.46,23.122,23.102,17.0]
[1673884740061,52.46,23.123,23.102,17.0]
[1673884741019,52.46,23.123,23.1,16.99]
[1673884741238,52.46,23.123,23.093,20.0]
[1673884742386,52.46,23.123,23.099,20.0]
[1673884742998,20.0,23.121,23.099,20.0]
[1673884743423,20.0,23.119,23.099,20.0]
[1673884743628,20.0,23.119,23.093,20.0]
[1673884743846,20.0,23.117,23.093,20.0]
[1673884744065,32.47,23.118,23.093,20.0]
[1673884744490,20.0,23.119,23.098,18.06409749]
[1673884744686,20.0,23.119,23.099,20.0]
[1673884745020,32.47,23.118,23.099,20.0]
[1673884745230,32.47,23.118,23.1,17.0]
[1673884745422,32.47,23.118,23.093,20.0]
[1673884745633,20.0,23.117,23.096,18.06409749]
[1673884745958,20.0,23.117,23.091,20.0]
[1673884746178,49.47,23.116,23.09,20.0]
[1673884746481,20.0,23.115,23.092,18.06409749]
[1673884746691,20.0,23.115,23.091,18.06409749]
[1673884746885,257.4483,23.114,23.091,18.06409749]
[1673884747336,257.4483,23.114,23.092,17.0]
[1673884747643,20.0,23.113,23.093,18.06409749]
[1673884748064,32.47,23.112,23.095,20.0]
[1673884748255,32.47,23.112,23.096,17.0]
[1673884749219,32.47,23.113,23.097,18.06409749]
[1673884749446,224.9783,23.114,23.098,17.0]
[1673884749742,32.47,23.118,23.099,38.06409749]
[1673884749953,151.146,23.12,23.1,17.0]
[1673884750151,151.146,23.12,23.1,35.06409749]
[1673884750354,151.146,23.12,23.101,18.06409749]
[1673884750560,20.0,23.117,23.102,17.0]
[1673884750780,20.0,23.117,23.1,17.0]
[1673884750983,32.47,23.116,23.1,17.0]
[1673884751195,32.47,23.116,23.099,17.0]
[1673884751405,20.0,23.115,23.099,17.0]
[1673884751961,20.0,23.113,23.099,17.0]
[1673884752157,20.0,23.113,23.093,18.06409749]
[1673884752352,32.47,23.112,23.093,18.06409749]
[1673884752688,20.0,23.111,23.091,20.0]
[1673884752878,20.0,23.111,23.091,38.06409749]
[1673884753089,52.47,23.113,23.091,20.0]
[1673884753298,52.47,23.113,23.093,20.0]
[1673884753606,52.47,23.113,23.092,18.06409749]
[1673884753828,52.47,23.113,23.093,18.06409749]
[1673884754261,32.47,23.113,23.091,20.0]
[1673884754481,111.0082,23.114,23.092,18.06409749]
[1673884754687,111.0082,23.114,23.093,20.0]
[1673884755003,20.0,23.113,23.094,18.06409749]
[1673884755209,52.47,23.113,23.094,18.06409749]
[1673884755524,32.47,23.113,23.095,17.0]
[1673884755749,111.0082,23.114,23.096,20.0]
[1673884755922,111.0082,23.114,23.097,17.0]
[1673884756137,111.0082,23.114,23.097,35.06409749]
[1673884756566,111.0082,23.114,23.097,17.0]
[1673884756767,111.0082,23.114,23.097,35.06409749]
[1673884756976,111.0082,23.114,23.098,20.0]
[1673884757205,32.47,23.118,23.099,17.0]
[1673884757521,112.6847,23.127,23.099,17.0]
[1673884757522,32.46,23.122,23.099,17.0]
[1673884757742,32.47,23.117,23.099,35.06409749]
[1673884758048,20.0,23.117,23.099,35.06409749]
[1673884758571,20.0,23.117,23.099,17.0]
[1673884758763,32.47,23.116,23.099,17.0]
[1673884758970,32.47,23.116,23.099,18.06409749]
[1673884759181,20.0,23.117,23.1,17.0]
[1673884759611,20.0,23.117,23.1,35.06409749]
[1673884762774,20.0,23.117,23.091,20.0]
[1673884762990,20.0,23.115,23.094,18.06409749]
[1673884763601,20.0,23.115,23.084,136.3227]
[1673884763946,147.7259,23.114,23.086,18.06409749]
[1673884764131,147.7259,23.114,23.091,18.06409749]
[1673884764338,115.2559,23.114,23.092,20.0]
[1673884764972,115.2559,23.114,23.094,20.0]
[1673884765189,115.2559,23.114,23.096,20.0]
[1673884765400,115.2559,23.114,23.097,17.0]
[1673884766775,32.47,23.116,23.097,17.0]
[1673884767000,20.0,23.117,23.098,20.0]
[1673884767179,20.0,23.117,23.099,17.0]
[1673884768357,20.0,23.117,23.094,38.06409749]
[1673884768668,32.47,23.118,23.099,18.06409749]
[1673884768880,20.0,23.117,23.095,18.06409749]
[1673884769071,20.0,23.117,23.096,20.0]